bitfinex/quotes_ETHUSD_20251015
["timestamp","ask_amount","ask_price","bid_price","bid_amount"]
[1760525093624,3.607,4131.6,4131.5,3.52397872]
[1760525094922,0.001,4131.6,4131.5,3.52397872]
[1760525095131,3.606,4131.6,4131.5,3.52397872]
[1760525097456,3.606,4131.6,4131.5,3.64477872]
[1760525101226,3.606,4131.6,4131.5,2.54122841]
[1760525101538,4.047,4131.6,4130.6,0.002]
[1760525101738,4.047,4131.6,4131.0,0.1208]
[1760525101939,0.2284,4131.1,4131.0,0.1208]
[1760525102238,2.7414,4131.1,4131.0,0.1208]
[1760525102440,3.1824,4131.1,4131.0,2.54152137]
[1760525103155,3.1824,4131.1,4131.0,0.1208]
[1760525103733,3.1824,4131.1,4131.0,4.46152137]
[1760525104864,3.1824,4131.1,4131.0,2.0408]
[1760525105042,3.1824,4131.1,4131.0,4.46152137]
[1760525105862,0.6694,4131.1,4131.0,4.46152137]
[1760525106063,4.2724,4131.1,4131.0,4.46152137]
[1760525108341,3.8314,4131.1,4131.0,2.54152137]
[1760525108545,4.2724,4131.1,4131.0,2.54152137]
[1760525108757,0.2284,4131.1,4131.0,2.54152137]
[1760525108955,3.8304,4131.1,4131.0,2.54152137]
[1760525109158,4.2714,4131.1,4131.0,2.54152137]
[1760525109355,4.2714,4131.1,4130.8,0.002]
[1760525109557,4.2714,4131.1,4130.8,2.42279014]
[1760525109756,0.441,4131.0,4130.8,2.42279014]
[1760525109967,0.441,4130.9,4130.8,0.002]
[1760525113271,3.8304,4131.1,4131.0,2.42072137]
[1760525113440,4.2844,4131.1,4131.0,2.42072137]
[1760525113635,4.2836,4131.1,4131.0,2.42072137]
[1760525114749,4.2836,4131.1,4130.9,2.42076514]
[1760525114937,0.453,4131.0,4130.8,0.002]
[1760525115139,0.453,4131.0,4130.9,2.42077997]
[1760525117567,0.453,4131.0,4130.8,0.002]
[1760525119354,3.8306,4131.1,4130.8,0.002]
[1760525119553,0.453,4130.9,4130.8,0.002]
[1760525120034,2.511,4130.9,4130.8,0.002]
[1760525120264,4.055,4130.9,4130.8,0.002]
[1760525120971,4.055,4130.9,4130.8,2.42283857]
[1760525121272,3.602,4130.9,4130.8,2.42283857]
[1760525121568,4.055,4130.9,4130.8,0.002]
[1760525122939,0.453,4130.9,4130.8,0.002]
[1760525123162,4.055,4130.9,4130.8,0.002]
[1760525123466,3.602,4130.9,4130.8,0.002]
[1760525123971,4.055,4130.9,4130.8,0.002]
[1760525124486,3.602,4130.9,4130.8,2.42283857]
[1760525124652,1.091,4131.1,4130.8,2.42283857]
[1760525124974,3.602,4131.0,4130.9,2.42077997]
[1760525126366,4.055,4131.0,4130.8,0.1228]
[1760525126544,0.6844,4130.9,4130.8,0.002]
[1760525130372,3.7228,4131.0,4130.8,0.002]
[1760525130846,0.6844,4130.9,4130.8,0.002]
[1760525131372,3.7228,4131.0,4130.8,2.42283857]
[1760525132975,3.602,4131.0,4130.9,2.42077997]
[1760525134849,3.6,4131.0,4130.9,2.42077997]
[1760525136449,3.6,4131.0,4130.8,0.1228]
[1760525136654,3.6,4131.0,4130.8,0.002]
[1760525136655,0.6844,4130.9,4130.8,0.002]
[1760525137173,0.6836,4130.9,4130.8,0.002]
[1760525137972,0.6836,4130.9,4130.8,2.42283857]
[1760525138764,0.6836,4130.9,4130.8,0.002]
[1760525139482,0.6836,4130.9,4130.8,2.42283857]
[1760525139787,0.6836,4130.9,4130.8,0.002]
[1760525140085,3.6,4131.0,4130.9,2.42077997]
[1760525140282,4.0297,4131.0,4130.9,2.42077997]
[1760525140786,4.0297,4131.0,4130.8,2.42282567]
[1760525141251,4.0297,4131.0,4130.9,2.42077997]
[1760525141683,3.6,4131.0,4130.9,2.42077997]
[1760525142062,3.6,4131.0,4130.8,2.42282408]
[1760525142255,0.4297,4130.9,4130.8,2.42283018]
[1760525142456,0.4297,4130.9,4130.8,0.002]
[1760525142975,0.4297,4130.9,4130.8,2.42283857]
[1760525144455,3.6,4131.0,4130.8,2.42283857]
[1760525145081,4.0297,4131.0,4130.8,2.42283857]
[1760525146087,4.0297,4131.0,4130.9,2.42077997]
[1760525146395,3.6,4131.0,4130.9,2.42077997]
[1760525146972,3.6,4131.0,4130.8,2.42280019]
[1760525147288,0.6618,4130.9,4130.8,2.42283857]
[1760525147790,0.6618,4130.9,4130.8,0.002]
[1760525149891,0.7826,4130.9,4130.8,0.002]
[1760525150097,3.6,4131.0,4130.8,2.42279956]
[1760525150299,1.091,4131.0,4130.9,2.42077997]
[1760525150529,3.597,4131.0,4130.9,2.42077997]
[1760525151308,3.597,4131.0,4130.8,0.002]
[1760525151774,4.0267,4131.0,4130.8,0.002]
[1760525152112,0.4297,4130.9,4130.8,0.002]
[1760525154404,3.597,4131.0,4130.8,0.002]
[1760525154710,4.0668,4131.0,4130.8,0.002]
[1760525155024,0.4698,4130.9,4130.8,0.002]
[1760525156790,3.01137997,4130.9,4130.8,0.002]
[1760525157208,0.5906,4130.9,4130.8,0.002]
[1760525157888,3.01137997,4130.9,4130.8,0.002]
[1760525158291,0.5906,4130.9,4130.8,0.002]
[1760525158620,3.01137997,4130.9,4130.8,0.002]
[1760525159414,0.5906,4130.9,4130.8,0.002]
[1760525159911,0.5916,4130.9,4130.8,0.002]
[1760525160302,3.01237997,4130.9,4130.8,0.002]
[1760525160695,0.5908,4130.9,4130.8,0.002]
[1760525165001,0.1218,4130.9,4130.8,0.002]
[1760525168621,0.001,4130.9,4130.8,2.42283857]
[1760525168793,2.504,4130.9,4130.8,0.002]
[1760525170097,3.595,4130.9,4130.8,2.42283857]
[1760525170417,3.595,4130.9,4130.8,0.002]
[1760525171623,3.595,4130.9,4130.8,2.42283857]
[1760525171841,3.595,4130.9,4130.8,0.002]
[1760525174926,1.092,4130.9,4130.8,6.27512497]
[1760525175129,0.001,4131.1,4131.0,3.05432137]
[1760525175325,0.001,4131.3,4131.2,3.05420418]
[1760525176128,0.001,4131.3,4131.2,3.06050418]
[1760525176325,0.019,4131.3,4131.2,3.06050418]
[1760525176520,0.019,4131.3,4131.2,3.90440213]
[1760525178928,0.454,4131.3,4131.2,3.90440213]
[1760525179625,0.454,4131.3,4131.2,7.67278658]
[1760525180215,1.545,4131.3,4131.2,7.67278658]
[1760525180929,1.545,4131.3,4131.2,3.26450213]
[1760525181106,1.545,4131.3,4131.1,2.42066277]
[1760525181107,1.545,4131.3,4131.1,2.42061717]
[1760525181306,0.4597,4131.2,4130.8,0.002]
[1760525181522,0.4597,4131.2,4131.0,2.42071009]
[1760525181720,0.4597,4131.1,4130.9,2.42076818]
[1760525181924,0.4597,4131.0,4130.8,0.002]
[1760525182120,0.2206,4130.9,4130.8,0.002]
[1760525182803,0.6803,4130.9,4130.8,0.002]
[1760525183811,0.6803,4130.9,4130.8,2.42283857]
[1760525184147,0.6795,4130.9,4130.8,2.42283857]
[1760525184443,0.6795,4130.9,4130.8,0.002]
[1760525184945,0.6795,4130.9,4130.8,2.42283857]
[1760525186743,0.2198,4130.9,4130.8,2.42283857]
[1760525186943,0.6795,4130.9,4130.8,2.42283857]
[1760525187352,0.4597,4131.1,4130.8,2.42283857]
[1760525187838,0.4597,4131.0,4130.8,2.42283857]
[1760525188038,1.6658,4131.3,4130.8,2.42283857]
[1760525188238,0.4597,4130.9,4130.8,2.42283857]
[1760525188620,0.4597,4130.9,4130.8,0.002]
[1760525188820,0.6803,4130.9,4130.8,0.002]
[1760525189619,3.1803,4130.9,4130.8,0.002]
[1760525195464,2.80097239,4131.7,4130.8,0.002]
[1760525195465,1.091,4134.5,4131.5,2.552]
[1760525195767,1.091,4134.5,4133.5,3.76838445]
[1760525195927,6.402079,4134.3,4133.2,2.41939985]
[1760525196128,0.2206,4133.3,4133.2,2.41943288]
[1760525196327,2.499,4133.3,4133.2,3.14706633]
[1760525196543,2.499,4133.3,4133.2,2.41943288]
[1760525200852,2.9557,4133.3,4133.1,2.54028536]
[1760525201064,2.499,4133.3,4133.1,2.54028536]
[1760525201263,0.4567,4133.2,4133.1,2.54028536]
[1760525203580,0.4567,4133.2,4132.9,2.4196083]
[1760525203774,0.4567,4133.1,4132.9,2.4196083]
[1760525204281,2.499,4133.3,4132.8,0.1208]
[1760525204486,2.499,4133.3,4132.9,2.4196085]
[1760525204654,2.499,4133.3,4133.1,2.4194385]
[1760525204960,2.9557,4133.3,4133.1,2.4194385]
[1760525205383,2.9557,4133.3,4133.2,2.41943288]
[1760525205584,2.499,4133.3,4133.2,2.41943288]
[1760525206466,2.499,4133.3,4132.9,2.41960582]
[1760525206467,2.9557,4133.3,4132.2,2.42001028]
[1760525206662,0.1208,4133.2,4133.0,2.41954509]
[1760525206867,0.5775,4133.2,4133.0,2.41954509]
[1760525207078,0.1208,4133.2,4132.5,0.1208]
[1760525207276,2.499,4133.3,4133.2,2.41943288]
[1760525207768,0.12,4133.5,4133.4,2.41931581]
[1760525208862,3.0727,4133.5,4133.4,2.41931581]
[1760525209060,2.616,4133.5,4133.4,2.41931581]
[1760525210306,1.92,4134.2,4133.4,2.41931581]
[1760525210307,0.72775701,4134.5,4134.1,2.41887946]
[1760525210460,3.586,4134.4,4133.5,2.41921485]
[1760525210801,1.09,4134.4,4134.3,2.41878915]
[1760525211560,3.586,4134.4,4134.3,2.41878915]
[1760525212392,1.3116,4134.9,4134.1,0.1139]
[1760525212595,1.09,4134.4,4134.3,2.41878915]
[1760525212800,1.091,4134.9,4134.3,2.88769193]
[1760525212970,3.284,4134.8,4134.1,0.1139]
[1760525213173,3.284,4134.8,4134.7,2.41855515]
[1760525215689,1.091,4134.9,4134.8,2.41849666]
[1760525215860,4.676,4134.9,4134.8,2.41849666]
[1760525216388,4.676,4134.9,4134.8,3.14406783]
[1760525216592,1.091,4134.9,4134.8,3.14406783]
[1760525216780,4.676,4134.9,4134.8,3.37176783]
[1760525218865,4.676,4134.9,4134.8,3.14406783]
[1760525220466,4.676,4134.9,4134.8,3.26486783]
[1760525221302,4.675,4134.9,4134.8,3.49256783]
[1760525221678,4.675,4134.9,4134.8,3.26486783]
[1760525221863,4.675,4134.9,4134.8,2.53929666]
[1760525222069,5.3643,4134.9,4134.3,2.41874896]
[1760525222397,4.905,4134.9,4133.7,2.41914023]
[1760525222575,0.4593,4134.8,4134.2,2.41883457]
[1760525222785,0.4593,4134.7,4134.3,2.41877557]
[1760525223090,0.4593,4134.6,4134.4,2.41871511]
[1760525223288,2.494,4134.5,4134.4,2.41871511]
[1760525226881,3.583,4134.5,4134.4,2.90248625]
[1760525227094,3.583,4134.5,4134.4,3.13018625]
[1760525227403,3.583,4134.5,4134.4,5.05018625]
[1760525228104,1.09,4134.5,4134.4,4.82248625]
[1760525228507,1.09,4134.5,4134.4,2.90248625]
[1760525229279,3.583,4134.5,4134.4,2.90248625]
[1760525230210,3.584,4134.5,4134.4,2.90248625]
[1760525231184,1.0902,4134.5,4134.4,2.90248625]
[1760525231587,1.0902,4134.5,4134.4,2.41873065]
[1760525232009,1.0902,4134.5,4134.4,2.53953065]
[1760525232530,3.5832,4134.5,4134.4,2.53953065]
[1760525234116,4.0556,4134.5,4133.6,2.41914997]
[1760525234286,0.4724,4134.4,4133.2,0.1139]
[1760525234810,0.4724,4134.4,4133.8,2.41908039]
[1760525235011,0.4724,4134.3,4133.2,0.1139]
[1760525235212,3.582,4134.2,4133.5,2.41925728]
[1760525235395,4.0544,4134.2,4134.0,2.41891116]
[1760525235743,0.4724,4134.1,4134.0,2.41891116]
[1760525236132,3.582,4134.1,4134.0,2.41891116]
[1760525236912,0.0002,4134.5,4134.4,2.41873065]
[1760525237147,3.5822,4134.5,4134.4,2.41873065]
[1760525239718,3.5822,4134.5,4134.4,2.64643065]
[1760525242320,1.091,4134.9,4134.8,2.41849666]
[1760525242530,2.181,4134.9,4134.8,2.41849666]
[1760525242734,2.181,4134.9,4134.8,2.90220349]
[1760525243017,2.8874,4134.9,4134.6,2.41856042]
[1760525243235,0.4724,4134.8,4134.4,2.41870579]
[1760525243436,2.9644,4134.7,4134.4,2.41871351]
[1760525243641,0.4724,4134.6,4134.4,2.41871351]
[1760525243868,0.4724,4134.6,4134.5,2.41867214]
[1760525245867,2.492,4134.7,4134.6,2.41861365]
[1760525246039,2.9644,4134.7,4134.6,2.41861365]
[1760525246669,1.325,4134.9,4134.8,2.41849666]
[1760525246862,5.3784,4134.9,4134.8,2.41849666]
[1760525249067,5.3784,4134.9,4134.5,0.1208]
[1760525249068,5.3784,4134.9,4134.7,2.41854237]
[1760525249241,0.4724,4134.8,4134.7,2.41855515]
[1760525249877,4.906,4134.9,4134.6,2.41861365]
[1760525250076,4.906,4134.9,4134.5,0.1208]
[1760525250282,5.3794,4134.9,4134.8,2.41849666]
[1760525250780,1.092,4134.9,4134.5,2.53946916]
[1760525250962,5.1454,4134.9,4134.5,0.1208]
[1760525251169,0.4724,4134.8,4134.5,0.1208]
[1760525251881,4.907,4134.9,4134.7,2.41851302]
[1760525252256,4.907,4134.9,4134.6,2.41861365]
[1760525252455,0.4724,4134.8,4134.6,2.41861365]
[1760525252644,0.4724,4134.8,4134.7,2.41855515]
[1760525253476,4.907,4134.9,4134.8,2.41849666]
[1760525254375,5.3794,4134.9,4134.8,2.41849666]
[1760525254767,4.673,4134.9,4134.8,2.41849666]
[1760525255272,4.673,4134.9,4134.8,2.91428719]
[1760525256284,4.673,4134.9,4134.8,2.41849666]
[1760525258891,4.672,4134.9,4134.8,2.41849666]
[1760525260163,4.672,4134.9,4134.8,2.64619666]
[1760525261079,3.5802,4134.9,4134.8,2.64619666]
[1760525262363,0.001,4135.4,4135.3,2.41820424]
[1760525262568,1.091,4135.4,4135.3,12.30015017]
[1760525263180,1.091,4135.4,4135.3,12.93375017]
[1760525263584,3.336,4135.4,4135.3,2.90185251]
[1760525263781,3.336,4135.4,4134.1,2.41887886]
[1760525263782,3.336,4135.4,4134.3,0.002]
[1760525264080,3.336,4135.4,4134.8,2.41848406]
[1760525264274,0.2254,4134.9,4134.8,2.41848406]
[1760525264590,3.1774,4134.9,4134.8,2.41848406]
[1760525265784,2.489,4134.9,4134.8,2.41848406]
[1760525265991,2.489,4134.9,4134.8,3.03507359]
[1760525269779,2.489,4134.9,4134.8,2.91427359]
[1760525269978,2.49,4134.9,4134.8,2.91427359]
[1760525272257,2.49,4134.9,4134.8,3.14197359]
[1760525272679,2.49,4134.9,4134.8,3.77557359]
[1760525274289,2.49,4134.9,4134.8,2.91427359]
[1760525276303,2.7252,4134.9,4134.5,0.002]
[1760525276503,0.4539,4134.8,4134.5,0.002]
[1760525276705,0.4539,4134.8,4134.5,2.42061518]
[1760525277033,2.7252,4134.9,4134.5,0.002]
[1760525277034,4.627575,4134.6,4134.5,0.002]
[1760525277321,3.577,4134.6,4133.9,0.002]
[1760525277470,0.4539,4134.7,4133.9,2.42101405]
[1760525277471,0.4539,4134.5,4133.9,2.42101405]
[1760525277670,4.0309,4134.5,4133.9,0.002]
[1760525277867,4.0309,4134.5,4133.9,2.42102062]
[1760525278177,4.0301,4134.5,4133.9,2.42102062]
[1760525279603,3.577,4134.5,4134.0,2.42095871]
[1760525279821,3.577,4134.5,4134.0,0.002]
[1760525279822,3.6978,4134.5,4134.0,0.002]
[1760525279993,3.577,4134.5,4134.4,2.41873065]
[1760525280383,4.0309,4134.5,4134.4,2.41873065]
[1760525280579,1.447,4134.9,4134.4,2.67268372]
[1760525280580,0.001,4134.9,4134.4,2.67268372]
[1760525280888,0.001,4134.9,4134.8,14.37039432]
[1760525281107,0.44811092,4136.3,4135.0,3.05194032]
[1760525281304,0.44811092,4136.3,4136.2,2.41767806]
[1760525281707,0.44811092,4136.3,4136.0,2.41778965]
[1760525282008,2.41733756,4136.8,4135.9,2.41780403]
[1760525282211,2.487,4136.3,4135.9,2.41780403]
[1760525282416,2.487,4136.3,4134.9,4.33840273]
[1760525282716,2.41768381,4136.2,4135.3,2.41815538]
[1760525283013,0.2352,4135.4,4134.7,2.41855515]
[1760525283211,2.487,4135.3,4135.2,2.41820508]
[1760525283510,2.9409,4135.3,4135.2,2.41820508]
[1760525283988,2.9409,4135.3,4134.0,0.002]
[1760525284184,2.9409,4135.3,4134.1,2.41890617]
[1760525284379,0.4539,4135.2,4134.7,2.41850217]
[1760525284600,2.487,4135.3,4134.0,2.42096277]
[1760525284601,0.2352,4134.8,4134.0,0.002]
[1760525284804,2.487,4134.7,4134.0,2.42090856]
[1760525285004,0.4539,4134.6,4134.2,2.41884409]
[1760525285178,0.4539,4134.5,4134.2,2.41884409]
[1760525285610,0.4539,4134.4,4134.2,2.41884409]
[1760525285783,0.4539,4134.3,4134.2,2.41884409]
[1760525286199,2.9409,4134.3,4134.2,2.41884409]
[1760525288009,0.4539,4134.3,4134.2,2.41884409]
[1760525288191,2.9409,4134.3,4134.2,2.41884409]
[1760525288399,0.4539,4134.3,4134.2,2.41884409]
[1760525288594,0.2352,4134.8,4134.7,2.41855515]
[1760525288797,3.1761,4134.8,4134.7,2.41855515]
[1760525289014,3.1761,4134.8,4134.0,0.002]
[1760525289524,3.1761,4134.8,4134.6,2.41856685]
[1760525289706,0.4539,4134.7,4134.5,2.41865884]
[1760525289905,0.4539,4134.7,4134.3,2.41878604]
[1760525290110,2.7222,4134.8,4134.6,2.41861365]
[1760525290310,1.5558,4134.7,4134.6,2.41861365]
[1760525292054,1.09,4134.7,4134.6,2.41861365]
[1760525292621,1.5558,4134.7,4134.6,2.41861365]
[1760525293421,1.5558,4134.7,4134.3,2.41878201]
[1760525293719,0.4658,4134.6,4134.5,2.41867214]
[1760525295304,2.7222,4134.8,4134.5,2.41867214]
[1760525295506,0.4658,4134.7,4134.6,2.41861365]
[1760525295855,0.4658,4134.7,4134.0,0.002]
[1760525296137,0.1208,4134.6,4134.0,2.42095099]
[1760525296426,0.4658,4134.5,4134.0,2.42095099]
[1760525296628,2.9518,4134.4,4134.0,0.002]
[1760525296925,2.9518,4134.4,4134.3,2.41878915]
[1760525298329,0.2352,4134.8,4134.5,2.41867214]
[1760525298535,0.2352,4134.8,4134.7,2.41855515]
[1760525298741,0.2352,4134.8,4134.3,2.41873429]
[1760525298944,2.9518,4134.7,4134.6,2.41860789]
[1760525299729,2.9518,4134.7,4134.2,2.53959065]
[1760525299911,0.4658,4134.6,4134.3,2.41878915]
[1760525300217,1.5558,4134.5,4134.4,2.4187187]
[1760525301211,1.09,4134.5,4134.4,2.4187187]
[1760525301805,1.09,4134.5,4134.3,2.41878882]
[1760525302127,0.2352,4134.8,4134.3,2.41878882]
[1760525302333,0.2352,4134.8,4134.6,2.41859386]
[1760525302826,0.2352,4134.8,4134.3,2.41875039]
[1760525303016,2.486,4134.7,4134.2,2.53963797]
[1760525303219,2.486,4134.7,4134.0,0.002]
[1760525303421,2.486,4134.7,4134.3,2.41874959]
[1760525303422,0.1208,4134.6,4134.3,2.41874959]
[1760525303811,0.5866,4134.6,4134.3,2.41874959]
[1760525304012,0.1208,4134.6,4134.3,2.41874959]
[1760525304217,0.4658,4134.5,4134.3,2.41874959]
[1760525304730,10.20885,4134.4,4134.0,0.002]
[1760525304933,0.1208,4134.2,4134.0,0.002]
[1760525305302,0.4658,4134.1,4134.0,0.002]
[1760525308428,2.9508,4134.1,4134.0,0.002]
[1760525308937,0.4658,4134.1,4134.0,0.002]
[1760525309143,2.9508,4134.1,4134.0,0.002]
[1760525309711,0.4658,4134.1,4134.0,0.002]
[1760525309939,2.9508,4134.1,4134.0,0.002]
[1760525310146,4.0408,4134.1,4134.0,0.002]
[1760525311529,6.45970617,4134.1,4134.0,0.002]
[1760525312246,16.84298517,4134.1,4134.0,0.002]
[1760525312547,12.85969,4134.1,4134.0,0.002]
[1760525313045,15.27859617,4134.1,4134.0,0.002]
[1760525313449,11.164041,4134.1,4134.0,0.002]
[1760525314143,11.392673,4134.1,4134.0,0.002]
[1760525314344,9.730673,4134.1,4134.0,0.002]
[1760525314569,2.485,4134.1,4134.0,0.002]
[1760525314923,0.1208,4134.2,4134.0,0.002]
[1760525315449,2.485,4134.1,4134.0,0.002]
[1760525316241,0.1208,4134.2,4134.0,0.002]
[1760525316418,2.485,4134.1,4134.0,0.002]
[1760525316614,5.03853,4134.1,4134.0,0.002]
[1760525316849,2.485,4134.1,4134.0,0.002]
[1760525317057,6.367913,4134.1,4134.0,0.002]
[1760525317349,8.78681917,4134.1,4134.0,0.002]
[1760525317544,6.367913,4134.1,4134.0,0.002]
[1760525319735,5.36970617,4134.1,4134.0,0.002]
[1760525320035,21.16284817,4134.1,4134.0,0.002]
[1760525320236,22.25284817,4134.1,4134.0,0.002]
[1760525320436,14.14298317,4134.1,4134.0,0.002]
[1760525320840,19.18514917,4134.1,4134.0,0.002]
[1760525321136,14.80070917,4134.1,4134.0,0.002]
[1760525321526,8.51498817,4134.1,4134.0,0.002]
[1760525321725,10.76684617,4134.1,4134.0,0.002]
[1760525321926,9.56674717,4134.1,4134.0,0.002]
[1760525322128,12.05074717,4134.1,4134.0,0.002]
[1760525322855,12.80724717,4134.1,4134.0,0.002]
[1760525323058,9.06913917,4134.1,4134.0,0.002]
[1760525323258,7.43943617,4134.1,4134.0,0.002]
[1760525323460,5.36870617,4134.1,4134.0,0.002]
[1760525323661,2.484,4134.1,4134.0,0.002]
[1760525324430,0.1208,4134.2,4134.0,0.002]
[1760525324636,2.484,4134.1,4134.0,0.002]
[1760525325460,2.53884785,4134.2,4134.0,0.002]
[1760525325764,2.85190617,4134.1,4134.0,0.002]
[1760525325961,5.02889317,4134.1,4134.0,0.002]
[1760525326263,0.433,4134.1,4134.0,0.002]
[1760525326448,2.53886184,4134.2,4134.0,0.002]
[1760525326449,2.53885021,4134.2,4134.0,0.002]
[1760525326640,2.484,4134.1,4134.0,0.002]
[1760525326840,4.90290617,4134.1,4134.0,0.002]
[1760525327941,2.41890617,4134.1,4134.0,0.002]
[1760525328142,15.73136617,4134.1,4134.0,0.002]
[1760525328765,14.89016517,4134.1,4134.0,0.002]
[1760525329067,13.51016517,4134.1,4134.0,0.002]
[1760525329265,11.39116517,4134.1,4134.0,0.002]
[1760525330166,7.51590617,4134.1,4134.0,0.002]
[1760525330364,13.94766517,4134.1,4134.0,0.002]
[1760525331164,9.43590617,4134.1,4134.0,0.002]
[1760525331368,17.62421717,4134.1,4134.0,0.002]
[1760525332073,16.53421717,4134.1,4134.0,0.002]
[1760525332261,20.13815717,4134.1,4134.0,0.002]
[1760525332658,16.33197317,4134.1,4134.0,0.002]
[1760525332863,15.91274317,4134.1,4134.0,0.002]
[1760525333063,15.53545317,4134.1,4134.0,0.002]
[1760525333262,15.85345317,4134.1,4134.0,0.002]
[1760525333468,14.76345317,4134.1,4134.0,0.002]
[1760525334260,25.55048617,4134.1,4134.0,0.002]
[1760525334583,24.60867317,4134.1,4134.0,0.002]
[1760525334755,22.80828217,4134.1,4134.0,0.002]
[1760525334952,17.15160117,4134.1,4134.0,0.002]
[1760525335178,18.83650117,4134.1,4134.0,0.002]
[1760525335353,19.63460117,4134.1,4134.0,0.002]
[1760525335554,18.39710117,4134.1,4134.0,0.002]
[1760525336176,13.40959717,4134.1,4134.0,0.002]
[1760525336984,10.28917717,4134.1,4134.0,0.002]
[1760525337183,9.64148017,4134.1,4134.0,0.002]
[1760525337372,7.29120617,4134.1,4134.0,0.002]
[1760525337579,18.07048817,4134.1,4134.0,0.002]
[1760525337772,17.67820817,4134.1,4134.0,0.002]
[1760525337958,16.51059517,4134.1,4134.0,0.002]
[1760525338384,17.46581485,4134.1,4134.0,0.002]
[1760525338575,33.93655085,4134.1,4134.0,0.002]
[1760525339479,38.24642585,4134.1,4134.0,0.002]
[1760525339683,38.62587372,4134.1,4134.0,0.002]
[1760525340059,38.14023272,4134.1,4134.0,0.002]
[1760525340254,19.35138304,4134.1,4134.0,0.002]
[1760525340458,22.80341704,4134.1,4134.0,0.002]
[1760525340958,20.62341704,4134.1,4134.0,0.002]
[1760525341675,27.83598904,4134.1,4134.0,0.002]
[1760525341868,27.83598904,4134.1,4133.6,0.002]
[1760525341869,3.05274023,4133.7,4133.6,0.002]
[1760525342077,26.27802023,4133.7,4133.6,0.002]
[1760525342270,27.06893991,4133.7,4133.6,0.002]
[1760525342472,34.73751591,4133.7,4133.6,0.002]
[1760525342661,30.13357591,4133.7,4133.6,0.002]
[1760525343487,31.76059491,4133.7,4133.6,0.002]
[1760525343791,19.33976691,4133.7,4133.6,0.002]
[1760525343959,17.71982923,4133.7,4133.6,0.002]
[1760525344638,23.05259823,4133.7,4133.6,0.002]
[1760525345376,20.57059823,4133.7,4133.6,0.002]
[1760525345571,19.04406623,4133.7,4133.6,0.002]
[1760525345775,17.06297623,4133.7,4133.6,0.002]
[1760525346091,15.07142723,4133.7,4133.6,0.002]
[1760525346680,21.25931623,4133.7,4133.6,0.002]
[1760525346986,20.31039723,4133.7,4133.6,0.002]
[1760525347377,24.07906777,4133.7,4133.6,0.002]
[1760525347563,25.13061577,4133.7,4133.6,0.002]
[1760525347892,25.45223545,4133.7,4133.6,0.002]
[1760525348101,25.20669145,4133.7,4133.6,0.002]
[1760525348264,24.02550545,4133.7,4133.6,0.002]
[1760525348694,27.93113545,4133.7,4133.6,0.002]
[1760525348931,27.93033545,4133.7,4133.6,0.002]
[1760525349713,28.08709645,4133.7,4133.6,0.002]
[1760525349911,24.26158577,4133.7,4133.6,0.002]
[1760525350094,28.26558577,4133.7,4133.6,0.002]
[1760525350428,25.83057077,4133.7,4133.6,0.002]
[1760525350591,28.86277577,4133.7,4133.6,0.002]
[1760525351390,29.18439545,4133.7,4133.6,0.002]
[1760525351608,14.19353045,4133.7,4133.6,0.002]
[1760525351806,32.42860245,4133.7,4133.6,0.002]
[1760525352024,17.47713945,4133.7,4133.6,0.002]
[1760525352416,19.95913945,4133.7,4133.6,0.002]
[1760525352928,26.15657645,4133.7,4133.6,0.002]
[1760525353733,27.27927845,4133.7,4133.6,0.002]
[1760525353929,21.89506845,4133.7,4133.6,0.002]
[1760525354097,20.10020877,4133.7,4133.6,0.002]
[1760525354722,10.58901077,4133.7,4133.6,0.002]
[1760525354928,22.64746775,4133.7,4133.6,0.002]
[1760525355829,24.73744875,4133.7,4133.6,0.002]
[1760525356036,24.06128375,4133.7,4133.6,0.002]
[1760525356625,22.93456175,4133.7,4133.6,0.002]
[1760525356830,27.67154575,4133.7,4133.6,0.002]
[1760525357133,25.68032475,4133.7,4133.6,0.002]
[1760525357629,28.59192776,4133.6,4133.5,1e-08]
[1760525357816,29.44979376,4133.6,4133.5,1e-08]
[1760525358126,30.44656376,4133.6,4133.5,1e-08]
[1760525358330,30.07678476,4133.6,4133.5,1e-08]
[1760525358632,27.82645976,4133.6,4133.5,1e-08]
[1760525358804,12.10244576,4133.6,4133.5,1e-08]
[1760525359012,14.58344576,4133.6,4133.5,1e-08]
[1760525359607,12.10244576,4133.6,4133.5,1e-08]
[1760525359910,19.72342176,4133.6,4133.5,1e-08]
[1760525360109,21.90342176,4133.6,4133.5,1e-08]
[1760525360408,20.55374576,4133.6,4133.5,1e-08]
[1760525360603,13.27285376,4133.6,4133.5,1e-08]
[1760525360809,11.84287276,4133.6,4133.5,1e-08]
[1760525361014,15.49537976,4133.6,4133.5,1e-08]
[1760525361814,13.31537976,4133.6,4133.5,1e-08]
[1760525362023,21.8286753,4133.6,4133.5,1e-08]
[1760525362212,22.72829498,4133.6,4133.5,1e-08]
[1760525363099,22.04381898,4133.6,4133.5,1e-08]
[1760525363305,18.92531098,4133.6,4133.5,1e-08]
[1760525363511,18.1123006,4133.6,4133.5,1e-08]
[1760525363839,14.9977006,4133.6,4133.5,1e-08]
[1760525364043,8.94503876,4133.6,4133.5,1e-08]
[1760525364211,10.68095176,4133.6,4133.5,1e-08]
[1760525365122,12.87616776,4133.6,4133.5,1e-08]
[1760525365314,11.27616776,4133.6,4133.5,1e-08]
[1760525366243,15.54863292,4133.6,4133.5,1e-08]
[1760525367044,19.90387592,4133.6,4133.5,1e-08]